bitfinex-derivatives/quotes_SOLF0:USTF0_20250630
["timestamp","ask_amount","ask_price","bid_price","bid_amount"]
[1751305384259,4.40624483,157.18,157.08,48.9258]
[1751305384459,5.49566754,157.16,157.08,46.66]
[1751305384668,4.40624483,157.15,157.08,46.66]
[1751305384863,5.49566754,157.16,157.08,46.66]
[1751305384864,4.40624483,157.14,157.08,52.15566754]
[1751305385061,4.40624483,157.13,157.08,52.15566754]
[1751305385365,4.40624483,157.12,157.08,52.15566754]
[1751305385565,4.40624483,157.15,157.08,52.15566754]
[1751305385759,4.40624483,157.14,157.08,52.15566754]
[1751305385959,4.40624483,157.13,157.08,52.15566754]
[1751305386160,10.76824483,157.15,157.11,6.3631]
[1751305386365,4.40624483,157.14,157.11,6.3631]
[1751305386662,4.40624483,157.13,157.11,6.3631]
[1751305386862,4.40624483,157.14,157.11,6.3631]
[1751305387059,4.40624483,157.13,157.12,6.363]
[1751305387254,2.2793,157.17,157.12,5.49566754]
[1751305387255,4.40624483,157.17,157.12,5.49566754]
[1751305387461,4.40624483,157.22,157.13,46.68]
[1751305387655,4.40624483,157.21,157.13,46.68]
[1751305387857,4.40624483,157.2,157.13,46.68]
[1751305388054,4.40624483,157.19,157.13,46.68]
[1751305388254,4.40624483,157.18,157.13,46.68]
[1751305388456,4.40624483,157.22,157.13,46.68]
[1751305388659,5.49566754,157.21,157.13,46.68]
[1751305388870,5.49566754,157.21,157.15,6.3617]
[1751305389566,6.3604,157.19,157.15,6.3617]
[1751305390066,6.3604,157.19,157.14,6.362]
[1751305390372,6.3604,157.19,157.13,46.68]
[1751305390562,5.49566754,157.21,157.16,6.361]
[1751305390763,5.49566754,157.21,157.13,46.68]
[1751305391273,4.4962,157.24,157.16,5.49566754]
[1751305392067,6.3586,157.23,157.18,6.3604]
[1751305392371,4.4962,157.24,157.18,46.68]
[1751305392572,4.4962,157.24,157.18,52.17566754]
[1751305392770,2.2324,157.24,157.18,52.17566754]
[1751305393365,2.2324,157.24,157.18,46.68]
[1751305393977,2.2324,157.24,157.18,53.0403]
[1751305394365,2.2324,157.24,157.18,46.68]
[1751305394765,2.1272,157.23,157.18,46.68]
[1751305395164,6.3592,157.22,157.18,46.68]
[1751305395366,2.1272,157.23,157.18,46.68]
[1751305395567,2.2324,157.24,157.21,6.359]
[1751305395770,2.2324,157.24,157.18,46.68]
[1751305395971,9.69356754,157.29,157.18,52.17566754]
[1751305396164,6.3572,157.27,157.21,6.3593]
[1751305396368,6.3572,157.27,157.18,52.17566754]
[1751305396667,6.3572,157.27,157.21,6.3591]
[1751305396971,6.3574,157.26,157.18,52.17566754]
[1751305397371,6.3574,157.26,157.21,6.3591]
[1751305397572,6.3577,157.25,157.18,52.17566754]
[1751305397768,9.7489876,157.27,157.18,46.68]
[1751305398371,6.3583,157.24,157.2,6.3597]
[1751305398569,6.3583,157.24,157.18,46.68]
[1751305399075,6.3583,157.24,157.2,6.3597]
[1751305399772,6.3591,157.22,157.18,46.68]
[1751305400373,6.3591,157.22,157.18,53.0402]
[1751305400872,9.7489876,157.27,157.18,46.68]
[1751305401273,6.3583,157.24,157.2,6.3594]
[1751305401866,6.3579,157.25,157.21,6.3592]
[1751305402368,6.3583,157.24,157.2,6.3595]
[1751305402567,6.3583,157.24,157.18,52.17566754]
[1751305402773,4.25332006,157.27,157.18,52.17566754]
[1751305403376,6.3583,157.24,157.2,6.3593]
[1751305403566,6.3583,157.24,157.18,52.17566754]
[1751305403770,4.25332006,157.27,157.18,52.17566754]
[1751305404374,6.3579,157.25,157.22,6.3589]
[1751305404875,6.3581,157.24,157.21,6.3591]
[1751305405968,6.3585,157.23,157.21,6.3591]
[1751305406374,6.31152006,157.28,157.18,52.17566754]
[1751305406574,6.3579,157.25,157.18,52.17566754]
[1751305406771,6.31152006,157.28,157.18,52.17566754]
[1751305407379,2.0582,157.28,157.18,52.17566754]
[1751305407578,6.3575,157.26,157.23,6.3582]
[1751305407876,2.0582,157.28,157.2,5.49566754]
[1751305408276,4.25332006,157.29,157.2,5.49566754]
[1751305408471,8.25497469,157.3,157.2,5.49566754]
[1751305408677,8.25497469,157.3,157.22,5.49566754]
[1751305408976,4.25332006,157.32,157.24,5.49566754]
[1751305409470,6.3559,157.3,157.27,6.3566]
[1751305411272,4.25332006,157.32,157.24,5.49566754]
[1751305411468,4.25332006,157.31,157.24,5.49566754]
[1751305411676,6.3563,157.29,157.26,6.357]
[1751305411875,4.25332006,157.31,157.23,46.84]
[1751305412076,4.25332006,157.32,157.23,46.84]
[1751305412276,6.3568,157.28,157.25,6.3575]
[1751305414478,6.357,157.27,157.25,6.3575]
[1751305414980,6.3572,157.27,157.24,6.358]
[1751305415981,5.49566754,157.3,157.23,53.1984]
[1751305416177,5.49566754,157.3,157.23,46.84]
[1751305416383,6.3571,157.27,157.23,53.1981]
[1751305416579,5.49566754,157.3,157.23,46.84]
[1751305416789,4.25332006,157.31,157.23,46.84]
[1751305417079,4.84650404,157.35,157.23,53.2]
[1751305417282,4.84650404,157.36,157.34,5.48183183]
[1751305417484,4.84650404,157.41,157.35,49.56]
[1751305417679,4.84650404,157.41,157.36,5.48183183]
[1751305417978,4.84650404,157.41,157.37,5.48183183]
[1751305418285,4.84650404,157.41,157.38,5.48183183]
[1751305418876,7.90785514,157.44,157.35,49.56]
[1751305419078,7.90785514,157.44,157.37,5.48183183]
[1751305419379,7.90785514,157.44,157.39,6.3517]
[1751305419581,6.5609,157.48,157.35,49.56]
[1751305419786,12.03837699,157.48,157.37,5.47747699]
[1751305419983,5.47747699,157.46,157.35,55.03747699]
[1751305420288,49.54,157.46,157.31,49.54]
[1751305420585,5.47747699,157.42,157.32,5.47747699]
[1751305420786,5.47747699,157.4,157.32,5.47747699]
[1751305420984,6.7009,157.41,157.32,5.47747699]
[1751305421179,6.352,157.4,157.34,6.3537]
[1751305421386,6.7009,157.41,157.32,5.47747699]
[1751305421583,6.3524,157.39,157.34,6.354]
[1751305421785,6.7009,157.41,157.34,6.354]
[1751305422189,6.3519,157.4,157.34,6.354]
[1751305422384,6.7009,157.41,157.34,5.47747699]
[1751305423386,13.0521,157.41,157.36,6.3532]
[1751305423979,6.3518,157.4,157.35,6.3533]
[1751305424183,6.7009,157.41,157.35,6.3533]
[1751305424890,6.3516,157.4,157.35,6.3533]
[1751305425286,5.47747699,157.4,157.31,49.54]
[1751305425491,6.3528,157.38,157.31,49.54]
[1751305425687,6.7009,157.41,157.34,6.3537]
[1751305426294,6.3523,157.39,157.34,6.3537]
[1751305426688,4.4259,157.41,157.34,5.47747699]
[1751305427492,6.3518,157.4,157.34,5.47747699]
[1751305428291,6.3518,157.4,157.36,6.3532]
[1751305428595,6.3522,157.39,157.34,5.47747699]
[1751305428994,4.4259,157.41,157.31,49.54]
[1751305429299,4.4259,157.41,157.33,5.47747699]
[1751305429796,6.3524,157.39,157.33,5.47747699]
[1751305429995,6.3524,157.39,157.35,6.3534]
[1751305430200,6.3525,157.38,157.35,6.3534]
[1751305430397,4.4259,157.41,157.32,5.47747699]
[1751305430694,4.4259,157.41,157.37,6.3528]
[1751305430895,6.3519,157.4,157.37,6.3528]
[1751305431090,4.4259,157.41,157.36,6.3531]
[1751305431493,6.3523,157.39,157.36,6.3531]
[1751305431693,4.4259,157.41,157.35,6.3535]
[1751305432089,6.3526,157.38,157.35,6.3535]
[1751305433198,6.3529,157.37,157.34,11.83137699]
[1751305433793,6.3529,157.37,157.31,49.54]
[1751305433794,4.4259,157.41,157.35,6.3535]
[1751305434396,6.3528,157.38,157.35,6.3535]
[1751305434695,4.4259,157.41,157.32,5.47747699]
[1751305434898,6.3528,157.38,157.32,5.47747699]
[1751305435089,6.3528,157.38,157.36,6.3532]
[1751305435395,6.3528,157.38,157.32,5.47747699]
[1751305435586,6.3522,157.39,157.32,5.47747699]
[1751305435789,6.3522,157.39,157.35,6.3534]
[1751305436091,6.3522,157.39,157.32,5.47747699]
[1751305436297,4.4259,157.41,157.32,5.47747699]
[1751305436486,4.4259,157.41,157.34,5.47747699]
[1751305436798,6.3519,157.4,157.37,6.3526]
[1751305437896,6.3519,157.4,157.38,6.3524]
[1751305438697,6.3519,157.4,157.31,49.54]
[1751305438698,6.352,157.39,157.32,5.47747699]
[1751305439196,6.3524,157.38,157.36,6.3531]
[1751305440001,6.3524,157.38,157.35,6.3535]
[1751305440199,6.3524,157.38,157.32,5.47747699]
[1751305440403,6.3524,157.38,157.31,49.54]
[1751305440596,6.3522,157.39,157.32,5.47747699]
[1751305440997,4.4259,157.41,157.39,6.3518]
[1751305441295,4.4259,157.41,157.34,5.47747699]
[1751305442799,4.4259,157.41,157.39,6.3518]
[1751305443094,6.3511,157.42,157.34,5.47747699]
[1751305443299,6.3511,157.42,157.39,6.3518]
[1751305443703,6.3513,157.41,157.39,6.3518]
[1751305444103,6.3513,157.41,157.38,6.3523]
[1751305445195,2.1479,157.45,157.41,6.3511]
[1751305445400,2.1479,157.45,157.36,5.47747699]
[1751305445703,6.3502,157.44,157.41,6.351]
[1751305446391,2.1479,157.45,157.36,50.18]
[1751305446798,6.3514,157.41,157.36,50.18]
[1751305447002,6.3514,157.41,157.38,6.3522]
[1751305447199,6.3514,157.41,157.36,50.18]
[1751305447500,5.47747699,157.44,157.38,6.3522]
[1751305448604,6.3511,157.42,157.38,6.3522]
[1751305449005,6.3511,157.42,157.39,6.3519]
[1751305449198,6.3511,157.42,157.36,50.18]
[1751305450000,6.3511,157.42,157.38,6.3521]
[1751305450206,3.69877016,157.41,157.32,53.87877016]
[1751305450405,8.09137016,157.41,157.33,3.20635353]
[1751305450595,6.3521,157.39,157.34,3.20635353]
[1751305450794,6.3521,157.39,157.32,53.87877016]
[1751305450994,6.3521,157.39,157.36,6.3529]
[1751305451409,6.3521,157.39,157.32,53.87877016]
[1751305451608,10.7441,157.41,157.34,3.69877016]
[1751305451808,10.7441,157.41,157.36,3.69877016]
[1751305452407,6.3516,157.4,157.37,6.3526]
[1751305452796,6.352,157.39,157.36,10.05187016]
[1751305453002,6.352,157.39,157.36,6.3531]
[1751305453300,6.352,157.39,157.37,6.3528]
[1751305453502,6.352,157.39,157.34,3.69877016]
[1751305453707,6.352,157.39,157.35,8.48489605]
[1751305453914,6.352,157.39,157.36,9.56646823]
[1751305454102,6.352,157.39,157.36,6.3529]
[1751305454302,6.3526,157.38,157.37,3.21365719]
[1751305454499,4.3926,157.41,157.37,3.21365719]
[1751305454699,4.3926,157.41,157.32,53.87877016]
[1751305454700,6.3534,157.36,157.32,53.87877016]
[1751305454912,3.69877016,157.38,157.33,3.21460743]
[1751305455204,3.69877016,157.38,157.34,3.21460743]
[1751305455404,3.69877016,157.38,157.35,3.21460743]
[1751305455606,3.69877016,157.4,157.32,53.87877016]
[1751305455808,6.3526,157.38,157.33,8.49425887]
[1751305456005,6.3526,157.38,157.34,3.21616492]
[1751305456205,6.3526,157.38,157.35,9.56956492]
[1751305456410,6.3526,157.38,157.32,53.87877016]
[1751305456411,6.3522,157.39,157.36,3.21616492]
[1751305456612,4.3926,157.41,157.32,53.87877016]
[1751305456914,6.3525,157.38,157.33,8.49965612]
[1751305457104,6.3525,157.38,157.34,3.21920954]
[1751305457307,6.3525,157.38,157.35,6.3536]
[1751305457599,4.33045689,157.37,157.32,53.87877016]
[1751305457907,4.33045689,157.36,157.33,5.28311214]
[1751305458105,6.3525,157.38,157.32,53.87877016]
[1751305458106,4.33045689,157.35,157.32,53.87877016]
[1751305458306,4.33045689,157.36,157.33,5.29962432]
[1751305458507,4.33045689,157.35,157.34,5.29962432]
[1751305458714,4.33045689,157.36,157.34,5.29962432]
[1751305459013,4.33045689,157.35,157.32,53.87877016]
[1751305459215,4.33045689,157.34,157.33,5.30262347]
[1751305459512,4.33045689,157.36,157.33,5.30262347]
[1751305459813,6.3526,157.38,157.35,6.3536]
[1751305460002,4.33650727,157.37,157.35,6.3536]
[1751305460210,4.33650727,157.36,157.35,6.3536]
[1751305461215,4.33650727,157.36,157.35,11.66863927]
[1751305463619,4.33650727,157.36,157.35,5.31503927]
[1751305464427,4.33650727,157.36,157.35,11.66863927]
[1751305464617,4.33650727,157.36,157.35,15.36740943]
[1751305464822,2.1479,157.45,157.35,15.37380943]
[1751305465122,2.1479,157.45,157.4,3.69877016]
[1751305465524,8.4977,157.45,157.4,3.69877016]
[1751305466226,8.4977,157.45,157.43,6.3504]
[1751305466428,8.4977,157.45,157.4,3.69877016]
[1751305466725,2.2098,157.48,157.42,6.3506]
[1751305466922,2.2098,157.48,157.42,3.69877016]
[1751305467124,2.2098,157.48,157.4,3.69877016]
[1751305467331,6.3502,157.44,157.41,6.3509]
[1751305468228,6.3502,157.44,157.42,6.3507]
[1751305468431,6.3502,157.44,157.4,3.69877016]
[1751305468830,6.3502,157.44,157.41,6.3511]
[1751305469130,3.69877016,157.47,157.39,50.18]
[1751305469332,3.69877016,157.47,157.39,56.5319]
[1751305469528,4.2997,157.48,157.39,56.5319]
[1751305469529,3.69877016,157.45,157.39,56.5319]
[1751305470425,6.3506,157.43,157.39,56.5319]
[1751305470826,6.3506,157.43,157.4,6.3516]
[1751305471221,6.3501,157.44,157.39,50.18]
[1751305471424,3.69877016,157.42,157.35,50.18]
[1751305471726,6.3523,157.39,157.32,50.18]
[1751305471935,2.1506,157.41,157.34,3.69877016]
[1751305472326,2.1506,157.41,157.32,50.18]
[1751305472522,2.1506,157.41,157.33,3.69877016]
[1751305472725,3.69877016,157.4,157.33,3.69877016]
[1751305472929,6.3529,157.37,157.34,6.3539]
[1751305474829,3.69877016,157.4,157.33,3.69877016]
[1751305475233,2.1506,157.41,157.32,50.18]
[1751305475234,3.69877016,157.36,157.32,50.18]
[1751305475426,6.3551,157.32,157.28,48.86]
[1751305476029,3.69877016,157.34,157.28,48.86]
[1751305476430,3.69877016,157.32,157.25,3.69877016]
[1751305476634,3.69877016,157.32,157.25,6.3577]
[1751305476635,6.3563,157.29,157.25,6.3577]
[1751305477135,6.3563,157.29,157.26,6.3572]
[1751305477331,6.3558,157.3,157.26,6.3572]
[1751305477832,6.3553,157.31,157.25,3.69877016]
[1751305478034,3.69877016,157.32,157.24,52.55877016]
[1751305478236,3.69877016,157.32,157.26,6.3572]
[1751305478937,6.356,157.3,157.26,6.3572]
[1751305480328,6.3561,157.29,157.26,6.3572]
[1751305480733,6.3561,157.29,157.25,6.3576]
[1751305482138,5.48809101,157.32,157.26,6.3573]
[1751305482339,5.48809101,157.32,157.24,48.86]
[1751305482938,5.48809101,157.32,157.25,6.3576]
[1751305483440,5.48809101,157.3,157.24,55.218]
[1751305483639,2.0722,157.29,157.24,55.218]
[1751305483841,6.3569,157.28,157.24,55.218]
[1751305484144,6.3569,157.28,157.24,6.358]
[1751305485641,6.3569,157.28,157.2,56.54359101]
[1751305486341,6.3569,157.27,157.24,6.3578]
[1751305488142,6.3573,157.26,157.24,6.3578]
[1751305488339,5.48809101,157.28,157.2,48.88]
[1751305488543,5.48809101,157.26,157.2,48.88]
[1751305488743,6.3584,157.24,157.21,6.3591]
[1751305489043,5.48809101,157.26,157.21,6.3591]
[1751305489445,5.48809101,157.26,157.2,55.2394]
[1751305489739,6.3583,157.24,157.2,48.88]
[1751305491047,6.3585,157.23,157.21,6.3592]
[1751305491249,5.48809101,157.26,157.21,6.3592]
[1751305491944,6.3584,157.24,157.2,48.88]
[1751305492148,5.48809101,157.27,157.22,6.3589]
[1751305492849,6.358,157.25,157.22,6.3589]
[1751305493649,6.358,157.25,157.14,133.1496]
[1751305493650,5.48809101,157.25,157.16,48.9]
[1751305494048,6.3592,157.22,157.16,48.9]
[1751305494238,4.1929,157.28,157.16,48.9]
[1751305494239,5.48809101,157.23,157.16,48.9]
[1751305494640,5.48809101,157.23,157.17,6.3608]
[1751305494641,6.36,157.2,157.17,6.3608]
[1751305495348,6.3603,157.19,157.12,51.1543]
[1751305495742,5.48809101,157.21,157.12,51.1543]
[1751305495941,6.36,157.2,157.16,6.361]
[1751305496249,5.48809101,157.23,157.14,136.14809101]
[1751305496438,6.3598,157.2,157.14,136.14809101]
[1751305497243,6.3598,157.2,157.17,6.3608]
[1751305498255,6.3601,157.19,157.17,6.3608]
[1751305498445,5.48809101,157.23,157.17,6.3608]
[1751305498752,6.3599,157.2,157.17,6.3608]
[1751305498945,5.48809101,157.23,157.15,6.3614]
[1751305499145,6.3608,157.18,157.15,6.3614]
[1751305499853,6.361,157.17,157.14,137.022]
[1751305500054,5.48809101,157.21,157.14,6.362]
[1751305500550,5.48809101,157.17,157.12,48.9]
[1751305500952,6.3615,157.16,157.13,6.3623]
[1751305502451,3.7077042,157.22,157.14,133.9877042]
[1751305502655,3.7077042,157.2,157.14,130.28]
[1751305502854,10.0676042,157.2,157.16,6.3613]
[1751305503045,3.7077042,157.22,157.14,130.28]
[1751305503250,6.3597,157.21,157.16,6.3612]
[1751305503648,3.7077042,157.2,157.12,52.6077042]
[1751305503954,4.3575,157.24,157.14,6.3621]
[1751305503955,6.3612,157.17,157.14,6.3621]
[1751305504345,10.0693042,157.16,157.13,6.3623]
[1751305505454,3.7077042,157.18,157.12,48.9]
[1751305505852,6.3613,157.17,157.14,6.3618]
[1751305506159,3.7077042,157.18,157.12,48.9]
[1751305506561,6.3611,157.17,157.14,6.3619]
[1751305507949,10.0684042,157.18,157.14,6.3619]
[1751305508366,10.0684042,157.18,157.15,6.3617]
[1751305509072,2.2076,157.19,157.16,6.3612]
[1751305509562,2.2076,157.19,157.15,6.3615]
[1751305509954,6.3607,157.18,157.15,6.3615]
[1751305510665,6.361,157.17,157.15,6.3615]
[1751305513463,6.3606,157.18,157.15,6.3615]
[1751305513661,2.2076,157.19,157.15,6.3615]
[1751305514262,6.3606,157.18,157.15,6.3615]
[1751305515162,6.3598,157.2,157.12,52.6077042]
[1751305515365,3.7077042,157.22,157.14,3.7077042]
[1751305515762,6.3599,157.2,157.17,6.3605]
[1751305515965,3.7077042,157.22,157.17,6.3605]
[1751305516267,6.36,157.2,157.17,6.3605]
[1751305516469,3.7077042,157.22,157.17,6.3605]
[1751305516867,6.36,157.2,157.17,6.3605]
[1751305517765,2.1208,157.23,157.18,3.7077042]
[1751305518262,6.3592,157.22,157.19,6.3598]
[1751305518663,2.1208,157.23,157.18,3.7077042]
[1751305519162,2.1208,157.23,157.17,47.72]
[1751305519362,2.1208,157.23,157.17,51.4277042]
[1751305519563,6.3591,157.22,157.19,6.3597]
[1751305520063,6.3591,157.22,157.17,51.4277042]
[1751305520064,2.1208,157.23,157.18,6.3603]
[1751305520569,6.3595,157.21,157.18,6.3603]
[1751305520770,2.1208,157.23,157.19,6.36]
[1751305520966,2.1208,157.23,157.17,51.4277042]
[1751305521164,2.1208,157.23,157.21,6.359]
[1751305521165,6.3588,157.23,157.21,6.359]
[1751305521463,3.7077042,157.26,157.21,6.359]
[1751305522068,49.8677,157.28,157.21,6.359]
[1751305522369,3.7077042,157.26,157.17,51.4277042]
[1751305523069,55.79881479,157.28,157.17,47.72]
[1751305523264,53.5754042,157.28,157.2,3.7077042]
[1751305524159,6.3579,157.25,157.22,6.3588]
[1751305525469,6.3581,157.24,157.22,6.3588]
[1751305526770,6.3578,157.25,157.22,6.3588]
[1751305526970,53.5754042,157.28,157.2,3.7077042]
[1751305527373,6.3577,157.26,157.22,6.3586]
[1751305528285,6.3577,157.25,157.22,6.3586]
[1751305529984,53.5754042,157.28,157.22,6.3586]
[1751305530182,59.50651899,157.28,157.21,6.3589]
[1751305530677,6.3583,157.24,157.21,6.3589]
[1751305530881,6.3583,157.24,157.22,6.3589]
[1751305531287,6.3578,157.25,157.23,6.3585]
[1751305531487,6.3578,157.25,157.2,3.7077042]
[1751305531878,6.3578,157.25,157.22,6.3586]
[1751305532079,6.3582,157.24,157.22,6.3586]
[1751305536586,6.3579,157.25,157.22,6.3586]
[1751305536986,59.50651899,157.28,157.22,6.3586]
[1751305537493,3.7077042,157.24,157.17,47.72]
[1751305537684,6.3587,157.23,157.17,47.72]
[1751305537889,9.63881899,157.26,157.18,3.7077042]
[1751305538392,6.3586,157.23,157.2,6.3594]
[1751305538587,6.3586,157.23,157.18,3.7077042]
[1751305538896,6.3583,157.24,157.21,6.3591]
[1751305541294,6.3583,157.24,157.18,3.7077042]
[1751305541295,6.3583,157.24,157.22,6.3588]
[1751305541491,2.1477,157.28,157.22,3.7077042]
[1751305541692,2.1477,157.28,157.22,50.5077042]
[1751305541887,2.1477,157.28,157.25,6.3573]
[1751305542087,8.5044,157.28,157.25,6.3573]
[1751305542395,8.5044,157.28,157.26,6.3571]
[1751305543097,6.3562,157.29,157.27,6.3567]
[1751305543297,3.7077042,157.31,157.24,3.7077042]
[1751305544600,6.3558,157.3,157.27,6.3567]
[1751305544900,50.5077042,157.32,157.27,6.3567]
[1751305546489,6.356,157.3,157.27,6.3567]
[1751305548403,2.1945,157.33,157.29,6.3558]
[1751305548600,3.7077042,157.31,157.23,2.067]
[1751305548797,3.7077042,157.32,157.25,3.7077042]
[1751305548998,6.3559,157.3,157.27,6.3566]
[1751305549799,6.3554,157.31,157.28,6.3564]
[1751305551101,6.3554,157.31,157.29,6.356]
[1751305552407,6.355,157.32,157.29,6.356]
[1751305553403,6.3553,157.31,157.28,6.3563]
[1751305553706,2.1945,157.33,157.28,6.3563]
[1751305553900,2.1945,157.33,157.25,3.7077042]
[1751305554306,2.1945,157.33,157.27,6.3566]
[1751305554508,2.1945,157.33,157.25,3.7077042]
[1751305554806,6.3563,157.29,157.26,6.357]
[1751305555303,6.3563,157.29,157.27,6.3568]
[1751305555805,6.3563,157.29,157.22,46.8]
[1751305556008,6.3563,157.29,157.26,6.3571]
[1751305556906,6.3565,157.28,157.26,6.3571]
[1751305558008,6.357,157.27,157.25,6.3575]
[1751305558309,3.7077042,157.32,157.23,3.7077042]
[1751305558909,6.3567,157.28,157.23,3.7077042]
[1751305559411,6.3567,157.28,157.25,6.3575]
[1751305559610,3.7077042,157.3,157.22,46.8]
[1751305559912,4.2744,157.29,157.24,6.3579]
[1751305560208,6.3567,157.28,157.24,6.3579]
[1751305560409,4.2744,157.29,157.24,6.3579]
[1751305560609,6.357,157.27,157.24,6.3579]
[1751305561011,6.357,157.27,157.25,6.3575]
[1751305561611,10.0643042,157.28,157.26,6.3573]
[1751305563009,6.3572,157.27,157.22,46.8]
[1751305563215,3.7077042,157.28,157.22,46.8]
[1751305563416,10.20551479,157.29,157.23,3.7077042]
[1751305563620,5.93111479,157.3,157.29,6.3561]
[1751305563812,5.93111479,157.31,157.29,6.3561]
[1751305564116,12.28621479,157.32,157.3,6.3557]
[1751305564314,5.93111479,157.32,157.27,3.7077042]
[1751305564518,8.12561479,157.33,157.27,3.7077042]
[1751305564817,6.3549,157.32,157.3,6.3555]
[1751305565512,6.3549,157.32,157.27,3.7077042]
[1751305566418,6.3553,157.31,157.29,6.3558]
[1751305566617,3.7077042,157.31,157.23,3.7077042]
[1751305567619,3.7077042,157.31,157.22,46.8]
[1751305567919,9.63881899,157.31,157.22,50.5077042]
[1751305568218,6.3564,157.29,157.26,6.3571]
[1751305568810,6.3559,157.3,157.27,6.3566]
[1751305569012,3.7077042,157.31,157.27,6.3566]
[1751305569413,6.356,157.3,157.27,6.3566]
[1751305570122,6.3555,157.31,157.24,3.7077042]
[1751305570517,6.3555,157.31,157.26,3.7077042]
[1751305571117,6.3555,157.31,157.29,6.3558]
[1751305571718,6.355,157.32,157.29,6.3558]
[1751305572614,6.3553,157.31,157.29,6.3558]
[1751305573018,6.3558,157.3,157.28,6.3563]
[1751305574024,6.3563,157.29,157.22,46.8]
[1751305574222,3.7077042,157.31,157.22,50.5077042]
[1751305574527,6.357,157.27,157.25,6.3575]
[1751305574727,3.7077042,157.29,157.22,50.5077042]
[1751305575221,6.3573,157.26,157.24,6.3578]
[1751305575916,3.7077042,157.29,157.23,6.3584]
[1751305576119,3.7077042,157.29,157.22,46.8]
[1751305576514,3.7077042,157.25,157.18,46.38]
[1751305576924,6.3591,157.22,157.19,6.3599]
[1751305577127,2.1758,157.24,157.18,46.38]
[1751305577327,2.1758,157.24,157.18,50.0877042]
[1751305578020,2.1758,157.24,157.22,6.3586]
[1751305578622,2.1758,157.24,157.23,6.3585]
[1751305578822,6.3573,157.26,157.2,3.7077042]
[1751305579222,6.3573,157.26,157.21,3.7077042]
[1751305579423,6.3576,157.26,157.21,3.7077042]
[1751305579929,6.3576,157.26,157.23,6.3582]
[1751305580123,4.2358,157.28,157.21,3.7077042]
[1751305580124,6.3577,157.25,157.21,3.7077042]
[1751305580326,10.16691479,157.28,157.22,6.3588]
[1751305580524,6.3577,157.26,157.21,3.7077042]
[1751305581224,6.3577,157.26,157.23,6.3585]
[1751305581528,6.3578,157.25,157.23,6.3585]
[1751305582126,6.3574,157.26,157.23,6.3585]
[1751305583625,10.16691479,157.28,157.23,6.3585]
[1751305583931,6.3577,157.25,157.23,6.3585]
[1751305585131,6.3577,157.25,157.22,6.3586]
[1751305585327,6.3577,157.25,157.2,3.7077042]
[1751305587334,6.3574,157.26,157.23,6.3583]
[1751305587933,6.3577,157.25,157.23,6.3583]
[1751305591035,6.3575,157.26,157.23,6.3583]
[1751305591230,6.3575,157.26,157.2,3.7077042]
[1751305592437,6.3575,157.26,157.23,6.3583]
[1751305592626,6.3575,157.26,157.2,3.7077042]
[1751305593026,6.3575,157.26,157.24,6.358]
[1751305593236,10.16691479,157.28,157.24,6.358]
[1751305593432,9.98698174,157.3,157.24,3.7077042]
[1751305593433,8.00491479,157.3,157.24,3.7077042]
[1751305593633,8.4296,157.3,157.24,3.7077042]
[1751305594232,8.4296,157.3,157.27,6.3565]
[1751305595139,8.4296,157.3,157.28,6.3564]
[1751305595438,6.3553,157.31,157.26,3.7077042]
[1751305596338,6.3553,157.31,157.28,6.3562]
[1751305597739,6.3547,157.33,157.28,3.7077042]
[1751305598039,58.22291899,157.35,157.28,50.0477042]
[1751305598040,8.13521479,157.35,157.28,50.0477042]
[1751305598238,8.13521479,157.35,157.3,3.7077042]
[1751305598430,2.2041,157.35,157.3,3.7077042]
[1751305598833,2.2041,157.35,157.32,6.3546]
[1751305599239,2.2041,157.35,157.3,3.7077042]
[1751305599941,2.2041,157.35,157.31,6.355]
[1751305600143,2.2041,157.35,157.28,50.0477042]
[1751305600342,5.93111479,157.36,157.32,3.7077042]